Cogmind - Beta 11.1 @@@ ROGUE MODE // 2022.05.08 @ 10:50:18 Player: ktur Result: Self-destructed Performance ------------- Evolutions (4) 2000 Regions Visited (13) 2600 Robots Destroyed (104) 520 Value Destroyed (2470) 2470 Prototype IDs (39) 780 Alien Tech Used (0) 0 Bonus (604) 604 TOTAL SCORE: 8974 Bonus ------- High Alert Combat Kills 4 Aligned with FarCom 300 Met Data Miner 300 Cogmind --------- Core Integrity 814/850 Matter 300/300 Energy 100/100 System Corruption 0% Temperature Cool (0) Movement Flying (107) Ox1 Location -6/Factory Parts ------- > --- POWER (1) -------- (None) > --- PROPULSION (6) --- Improved Flight Unit Improved Flight Unit > --- UTILITY (6) ------ Medium Storage Unit Structural Scanner Advanced Visual Processing Unit Hacking Suite Hacking Suite > --- WEAPON (2) ------- Power Sword > --- INVENTORY (10) --- Light Nuclear Core Light Fission Core Large Storage Unit Superbattery (1500) Improved Sensor Array Improved Hacking Suite Authchip [Propulsion] Authchip [Device] Authchip [Weapon] Trap Reconfigurator Peak State ------------ > --- POWER ------------ Light Deuterium Engine > --- PROPULSION ------- Cooled Airjet Improved Flight Unit Improved Flight Unit Improved Flight Unit Improved Flight Unit > --- UTILITY ---------- Medium Storage Unit Salvage Targeting Computer Medium Armor Plating Hacking Suite Hacking Suite > --- WEAPON ----------- Axe > --- INVENTORY -------- Light Nuclear Core Large Storage Unit Superbattery Improved Sensor Array Advanced Terrain Scan Processor ECM Suite Authchip [Propulsion] Trap Reconfigurator Missile Launcher Datajack [Rating: 37] Favorites ----------- Power Improved Ion Engine Engine Improved Ion Engine Power Core Light Nuclear Core Propulsion Armored Treads Treads Armored Treads Hover Unit Cooled Airjet Flight Unit Improved Flight Unit Utility Large Storage Unit Device Cooling System Storage Large Storage Unit Processor Salvage Targeting Computer Hackware Hacking Suite Protection Hardened Light Armor Plating Weapon Advanced Beam Cannon Energy Cannon Advanced Beam Cannon Ballistic Gun Light Assault Rifle Launcher Rocket Launcher Slashing Weapon Axe Special Melee Weapon Datajack Build | -11 -10 -10 -9 -9 -9 -8 -8 -7 -7 -7 -7 -6 -6 ------- Run | Scr Mat Min Mat Min Exi Min Mat Fac Low Low Dat Pro Fac Slots Evolved 8 | . . . 2 . . . 2 2 . . . . 2 Power . | . . . . . . . . . . . . . . Propulsion 4 | . . . 1 . . . 1 1 . . . . 1 Utility 4 | . . . 1 . . . 1 1 . . . . 1 Weapon . | . . . . . . . . . . . . . . Parts Attached 92 | 6 7 8 21 . 1 2 28 15 . . . 2 2 Power 7 | 1 1 . 2 . . . 3 . . . . . . Engine 5 | 1 1 . 2 . . . 1 . . . . . . Core 2 | . . . . . . . 2 . . . . . . Reactor . | . . . . . . . . . . . . . . Propulsion 30 | 2 1 . 6 . . . 12 9 . . . . . Treads 19 | 2 1 . 5 . . . 11 . . . . . . Leg . | . . . . . . . . . . . . . . Wheel . | . . . . . . . . . . . . . . Hover 3 | . . . . . . . 1 2 . . . . . Flight 8 | . . . 1 . . . . 7 . . . . . Utility 27 | 1 5 2 7 . . . 7 4 . . . . 1 Device 5 | . 1 . 1 . . . 2 . . . . . 1 Storage 5 | 1 1 1 1 . . . . 1 . . . . . Processor 2 | . . . . . . . 1 1 . . . . . Hackware 2 | . . . . . . . . 2 . . . . . Protection 13 | . 3 1 5 . . . 4 . . . . . . Artifact . | . . . . . . . . . . . . . . Weapon 28 | 2 . 6 6 . 1 2 6 2 . . . 2 1 Energy Gun . | . . . . . . . . . . . . . . Energy Cannon 5 | . . . 3 . 1 1 . . . . . . . Ballistic Gun 15 | 2 . 5 2 . . . 6 . . . . . . Ballistic Cannon . | . . . . . . . . . . . . . . Launcher 4 | . . 1 1 . . 1 . . . . . 1 . Special Weapon . | . . . . . . . . . . . . . . Impact Weapon . | . . . . . . . . . . . . . . Slashing Weapon 2 | . . . . . . . . 1 . . . 1 . Piercing Weapon . | . . . . . . . . . . . . . . Special Melee Weapon 2 | . . . . . . . . 1 . . . . 1 Unidentified Prototypes 4 | . . . 2 . . . 1 1 . . . . . Parts Lost 13 | . 1 . 1 . . . 4 . . . 3 2 2 Power 3 | . . . 1 . . . 1 . . . 1 . . Propulsion 3 | . . . . . . . . . . . 1 1 1 Utility 4 | . 1 . . . . . 2 . . . 1 . . Weapon 3 | . . . . . . . 1 . . . . 1 1 Highest Loss Streak 5 | . 1 . 1 . . . 2 . . . 3 5 2 To Critical Strikes . | . . . . . . . . . . . . . . Average Slot Usage (%) 95 | . 98 100 98 100 100 100 95 89 92 92 84 61 58 Engine 8 | . 13 14 10 11 11 11 4 7 7 7 4 . . Treads 27 | . 27 28 32 33 33 33 35 . . . . . . Flight 4 | . . . . . . . . 35 38 38 35 23 19 Device 5 | . . . 5 11 11 11 8 . . . . . 4 Storage 10 | . 14 14 11 11 11 11 9 7 7 7 7 7 6 Processor 2 | . . . . . . . 7 7 7 7 7 7 6 Hackware 1 | . . . . . . . . 13 15 15 15 15 13 Protection 11 | . 12 14 16 11 11 11 8 7 7 7 4 . . Energy Cannon 7 | . . . 12 22 22 21 3 . . . . . . Ballistic Gun 12 | . 28 28 9 . . . 14 . . . . . . Naked Turns . | . . . . . . . . . . . . . . Heaviest Build 52 | 12 20 30 52 42 42 42 44 25 25 25 25 13 15 Greatest Support 80 | 40 40 40 60 60 60 60 80 25 25 25 25 20 15 Greatest Overweight (x) 1 | . . . 1 . . . . 1 . . . . 1 Average Overweight (x) . | . . . . . . . . . . . . . . Largest Inventory Capacity 15 | 8 10 15 15 15 15 15 15 15 10 10 10 10 10 Average Capacity 13 | 7 9 14 15 15 15 15 15 10 10 10 10 10 10 Most Carried 15 | 6 10 15 15 15 15 15 15 15 10 10 10 10 10 Average Carried 13 | 3 8 14 14 15 14 15 14 9 10 10 10 9 9 Final Capacity 15 | 8 10 15 15 15 15 15 15 10 10 10 10 10 10 Final Carried 15 | 6 10 15 15 15 15 15 15 10 10 10 10 10 10 Class Distribution -------------------- 72% | Mutant 9% | Scavenger-Skirmisher 7% | Hacker-Sprinter 6% | Hacker-Mutant 4% | Scavenger-Mutant Dominant Class ---------------- Mutant | -10/Materials Mutant | -10/Mines Mutant | -9/Materials Mutant | -9/Mines Mutant | -9/Exiles Mutant | -8/Mines Mutant | -8/Materials Hacker-Sprinter | -7/Factory Hacker-Sprinter | -7/Lower Caves Hacker-Sprinter | -7/Lower Caves Hacker-Sprinter | -7/Data Miner Hacker-Mutant | -6/Proximity Caves Hacker-Mutant | -6/Factory Resources | -11 -10 -10 -9 -9 -9 -8 -8 -7 -7 -7 -7 -6 -6 ----------- Run | Scr Mat Min Mat Min Exi Min Mat Fac Low Low Dat Pro Fac Matter Collected 1771 | 173 252 77 450 . . 50 573 100 50 . . 36 10 Remotely . | . . . . . . . . . . . . . . Salvage Created 3540 | . 369 202 1403 214 . 153 1022 138 . . . 25 14 Parts 221 | . 33 26 89 7 . 7 50 6 . . . 1 2 Haulers Intercepted 6 | . 2 . 4 . . . . . . . . . . Recyclers Shooed 1 | . . . 1 . . . . . . . . . . Parts Field Recycled . | . . . . . . . . . . . . . . Retrieved Matter . | . . . . . . . . . . . . . . Parts Self-Destructed 2 | . . . . . . . . . . 1 . 1 . Prevented . | . . . . . . . . . . . . . . Kills | -11 -10 -10 -9 -9 -9 -8 -8 -7 -7 -7 -7 -6 -6 ------- Run | Scr Mat Min Mat Min Exi Min Mat Fac Low Low Dat Pro Fac Combat Hostiles Destroyed 78 | . 8 15 25 5 . 7 16 . . . . 2 . Melee 1 | . . . . . . . . . . . . 1 . Guns 43 | . 8 13 9 . . . 13 . . . . . . Cannons 23 | . . . 13 5 . 3 2 . . . . . . AOE 10 | . . 2 3 . . 4 . . . . . 1 . Classes Destroyed 10 | . 5 . 3 . . . 1 . . . . . 1 Worker 3 | . . . 2 . . . 1 . . . . . . Builder 1 | . . . . . . . . . . . . . 1 Hauler 6 | . 2 . 4 . . . . . . . . . . Recycler 6 | . . . 3 . . . 1 2 . . . . . Operator 4 | . 1 . 2 . . . 1 . . . . . . Watcher 6 | . 1 . 2 . . . 3 . . . . . . Swarmer 33 | . 3 15 7 . . 4 2 . . . . 2 . Grunt 34 | . 5 . 13 5 . 3 8 . . . . . . Brawler 1 | . . . . . . . 1 . . . . . . Sentry 10 | . . . 5 . . . 5 . . . . . . Best Kill Streak 8 | . 3 6 8 3 . 4 4 2 . . . 1 1 Combat Bots Only 6 | . 2 6 4 3 . 4 4 . . . . 1 . Max Kills in Single Turn 4 | . 1 2 4 2 . 2 1 1 . . . 1 1 Gunslinging 1 | . . 1 . . . . . . . . . . . Exploded 3 | . . 1 3 . . 2 . . . . . 1 . Melee 1 | . . . . . . . . . . . . 1 . Uniques/NPCs Destroyed . | . . . . . . . . . . . . . . Combat | -11 -10 -10 -9 -9 -9 -8 -8 -7 -7 -7 -7 -6 -6 -------- Run | Scr Mat Min Mat Min Exi Min Mat Fac Low Low Dat Pro Fac Damage Taken 3954 | . 491 294 912 168 . 315 1038 143 6 8 146 341 92 Core 592 | . 108 40 104 . . 34 78 24 6 . 28 134 36 Absorbed by Shields . | . . . . . . . . . . . . . . Regen/Repaired (Parts) 162 | . 150 . . . . . . 12 . . . . . Core Remaining (%) 72 | 100 . 40 . . . 65 85 . . . . 72 . Volleys Fired 273 | . 52 30 87 16 . 15 71 . . . . 2 . Largest 2 | . 2 2 2 2 . 2 2 . . . . 1 . Hottest 136 | . 40 40 136 136 . 136 136 . . . . 36 . Shots Fired 524 | . 104 58 173 32 . 28 127 . . . . 2 . Gun 366 | . 104 56 100 . . . 106 . . . . . . Cannon 151 | . . . 72 32 . 26 21 . . . . . . Launcher 7 | . . 2 1 . . 2 . . . . . 2 . Special . | . . . . . . . . . . . . . . Kinetic 366 | . 104 56 100 . . . 106 . . . . . . Thermal 151 | . . . 72 32 . 26 21 . . . . . . Explosive 7 | . . 2 1 . . 2 . . . . . 2 . Electromagnetic . | . . . . . . . . . . . . . . Robot Hit Streak 13 | . 13 8 10 4 . 6 12 . . . . 3 . Robot Miss Streak 8 | . 4 8 4 4 . 3 4 . . . . . . Penetration Max . | . . . . . . . . . . . . . . Secondary Targets 7 | . 1 3 1 . . . 2 . . . . . . Max Gunslinging Chain 1 | . 1 1 1 . . . 1 . . . . . . Shots Hit Robots 334 | . 67 29 111 17 . 16 85 2 . . 1 4 2 Core Hits 159 | . 25 18 55 7 . 11 40 . . . . 3 . Critical Kills 3 | . 1 . . . . . 2 . . . . . . Critical Parts Destroyed 3 | . 1 . 2 . . . . . . . . . . Critical Strikes 6 | . 2 . 2 . . . 2 . . . . . . Meltdown 1 | . . . . . . . 1 . . . . . . Destroy 5 | . 2 . 2 . . . 1 . . . . . . Melee Attacks 39 | . . . . . . . . 12 1 2 1 16 7 Impact . | . . . . . . . . . . . . . . Slashing 39 | . . . . . . . . 12 1 2 1 16 7 Piercing . | . . . . . . . . . . . . . . Sneak Attacks 4 | . . . . . . . . 2 . . 1 . 1 Combat Hostiles . | . . . . . . . . . . . . . . Follow-up Attacks . | . . . . . . . . . . . . . . Damage Inflicted 5967 | . 543 481 1837 393 . 587 1428 136 . . 98 338 126 Guns 2603 | . 539 275 700 . . . 1089 . . . . . . Cannons 1914 | . . . 901 393 . 288 332 . . . . . . Explosions 979 | . . 197 212 . . 299 . . . . . 271 . Melee 427 | . . . . . . . . 136 . . 98 67 126 Ramming 44 | . 4 9 24 . . . 7 . . . . . . Kinetic 2603 | . 539 275 700 . . . 1089 . . . . . . Thermal 1914 | . . . 901 393 . 288 332 . . . . . . Explosive 979 | . . 197 212 . . 299 . . . . . 271 . Electromagnetic . | . . . . . . . . . . . . . . Impact . | . . . . . . . . . . . . . . Slashing 427 | . . . . . . . . 136 . . 98 67 126 Piercing . | . . . . . . . . . . . . . . Highest Corruption . | . . . . . . . . . . . . . . Average Corruption . | . . . . . . . . . . . . . . Corruption Purged . | . . . . . . . . . . . . . . Corruption Blocked . | . . . . . . . . . . . . . . Overload Shots . | . . . . . . . . . . . . . . Overflow Damage 211 | . . 18 27 . . . . 76 . . . 29 61 Projectiles 25 | . . . 25 . . . . . . . . . . Explosions 20 | . . 18 2 . . . . . . . . . . Melee 166 | . . . . . . . . 76 . . . 29 61 Knockbacks . | . . . . . . . . . . . . . . Impact . | . . . . . . . . . . . . . . Kinetic . | . . . . . . . . . . . . . . Secondary . | . . . . . . . . . . . . . . Self-Inflicted Damage 152 | . . . . . . 83 . . . . . 69 . Shots 4 | . . . . . . 2 . . . . . 2 . Rammed 8 | . 1 2 3 . . . 2 . . . . . . Targets Rammed 10 | . 1 2 5 . . . 2 . . . . . . Kicked . | . . . . . . . . . . . . . . Crushed 2 | . . . 2 . . . . . . . . . . Highest Temperature 460 | . 46 12 207 460 . 264 21 12 . . 2 . . Average Temperature 52 | . 15 6 41 161 . 149 5 6 . . 2 . . Received Heat Transfer 1377 | . 213 . 396 117 . 108 477 45 . . . . 21 Effects 3 | . . . . 3 . . . . . . . . . Shutdowns 1 | . . . . 1 . . . . . . . . . Energy Bleed 1 | . . . . 1 . . . . . . . . . Interference 1 | . . . . 1 . . . . . . . . . Siege Activations . | . . . . . . . . . . . . . . Robots Corrupted . | . . . . . . . . . . . . . . Combat Hostiles . | . . . . . . . . . . . . . . Parts Fried . | . . . . . . . . . . . . . . Impact Corruptions . | . . . . . . . . . . . . . . Robots Melted 1 | . . . . . . . 1 . . . . . . Combat Hostiles 1 | . . . . . . . 1 . . . . . . Parts Melted 7 | . . . 4 2 . . 1 . . . . . . Heat Transferred 3404 | . . . 1591 703 . 518 592 . . . . . . Parts Sabotaged . | . . . . . . . . . . . . . . Parts Stolen . | . . . . . . . . . . . . . . Parts Stripped . | . . . . . . . . . . . . . . Power Chain Reactions . | . . . . . . . . . . . . . . Missiles Intercepted . | . . . . . . . . . . . . . . Alert | -11 -10 -10 -9 -9 -9 -8 -8 -7 -7 -7 -7 -6 -6 ------- Run | Scr Mat Min Mat Min Exi Min Mat Fac Low Low Dat Pro Fac Peak Influence 438 | . 147 273 438 164 . 203 305 102 . . . . 125 Initial 105 | . . . 105 44 . . 78 40 . . . . 12 Average 140 | . 84 111 187 132 . 170 163 44 . . . . 65 Maximum Alert Level 2 | . . 1 2 . . 1 1 . . . . . . Low Security (%) 75 | 100 100 80 54 100 . 62 72 100 . . . . 100 Level 1 23 | . . 19 43 . . 37 27 . . . . . . Level 2 . | . . . 2 . . . . . . . . . . Level 3 . | . . . . . . . . . . . . . . Level 4 . | . . . . . . . . . . . . . . Level 5 . | . . . . . . . . . . . . . . High Security . | . . . . . . . . . . . . . . Max Security . | . . . . . . . . . . . . . . Squads Dispatched 12 | . 2 . 3 . . . 1 5 . . . . 1 Investigation 4 | . 1 . . . . . . 3 . . . . . Extermination 1 | . . . . . . . . 1 . . . . . Reinforcement 7 | . 1 . 3 . . . 1 1 . . . . 1 Assault . | . . . . . . . . . . . . . . Garrison . | . . . . . . . . . . . . . . Intercept . | . . . . . . . . . . . . . . Searches Triggered . | . . . . . . . . . . . . . . Construction Impeded . | . . . . . . . . . . . . . . Haulers Reinforced . | . . . . . . . . . . . . . . Active Scanning Responses . | . . . . . . . . . . . . . . Cargo Convoy Interrupts . | . . . . . . . . . . . . . . Stealth | -11 -10 -10 -9 -9 -9 -8 -8 -7 -7 -7 -7 -6 -6 --------- Run | Scr Mat Min Mat Min Exi Min Mat Fac Low Low Dat Pro Fac Distress Signals 10 | . . 1 3 . . . 3 1 . . . . 2 Communications Jammed . | . . . . . . . . . . . . . . Distress Signals . | . . . . . . . . . . . . . . Times Spotted 139 | . 15 15 41 5 . 7 27 7 3 3 4 3 9 Peak Tracking Total 5 | . 4 3 5 3 . 4 5 4 2 4 4 3 5 Tactical Retreats 5 | . 1 . . . . . 1 2 . . . . 1 Traps | -11 -10 -10 -9 -9 -9 -8 -8 -7 -7 -7 -7 -6 -6 ------- Run | Scr Mat Min Mat Min Exi Min Mat Fac Low Low Dat Pro Fac Traps Triggered 7 | . 1 . . . . . 3 2 . . . . 1 Indirectly . | . . . . . . . . . . . . . . Trap Hack Attempts . | . . . . . . . . . . . . . . Triggered . | . . . . . . . . . . . . . . Disarmed . | . . . . . . . . . . . . . . Reprogrammed . | . . . . . . . . . . . . . . Reused . | . . . . . . . . . . . . . . Traps Extracted . | . . . . . . . . . . . . . . Installed . | . . . . . . . . . . . . . . Triggered 1 | . . . . . . . . . . 1 . . . Machines | -11 -10 -10 -9 -9 -9 -8 -8 -7 -7 -7 -7 -6 -6 ---------- Run | Scr Mat Min Mat Min Exi Min Mat Fac Low Low Dat Pro Fac Machines Disabled 1 | . . . . . . 1 . . . . . . . Max in Single Turn 1 | . . . . . . 1 . . . . . . . Garrison Access 2 | . . . . . . . 1 . . . . . 1 Machines Sabotaged . | . . . . . . . . . . . . . . Garrisons Compromised . | . . . . . . . . . . . . . . Overloaded Fab Kills . | . . . . . . . . . . . . . . Hacking | -11 -10 -10 -9 -9 -9 -8 -8 -7 -7 -7 -7 -6 -6 --------- Run | Scr Mat Min Mat Min Exi Min Mat Fac Low Low Dat Pro Fac Machines Accessed 34 | . 6 1 6 . 2 2 3 6 . . 4 . 4 Terminals 14 | . 4 . 4 . . 2 2 2 . . . . . Fabricators 3 | . . . . . . . . 3 . . . . . Repair Stations 2 | . 1 . . . . . . 1 . . . . . Recycling Units 3 | . 1 . . . . . . . . . . . 2 Scanalyzers 3 | . . . 2 . . . . . . . . . 1 Garrison Access 2 | . . . . . . . 1 . . . . . 1 Total Hacks 111 | . 20 1 19 . 2 7 9 13 . . 31 . 9 Successful 83 | . 10 1 11 . 2 5 5 12 . . 31 . 6 Failed 27 | . 9 . 8 . . 2 4 1 . . . . 3 Catastrophic 4 | . 1 . 1 . . 1 1 . . . . . . Database Lockouts 1 | . 1 . . . . . . . . . . . . Manual 43 | . 12 . 11 . 1 7 7 5 . . . . . Terminals 42 | . 12 . 11 . . 7 7 5 . . . . . Fabricators 6 | . . . . . . . . 6 . . . . . Repair Stations 9 | . 7 . . . . . . 2 . . . . . Recycling Units 6 | . 1 . . . . . . . . . . . 5 Scanalyzers 11 | . . . 8 . . . . . . . . . 3 Garrison Access 3 | . . . . . . . 2 . . . . . 1 Terminal Hacks 50 | . 2 1 3 . 2 5 2 4 . . 31 . . Record 12 | . . . . . 1 . . . . . 11 . . Part Schematic 13 | . . . . . . 1 . . . . 12 . . Robot Schematic 5 | . . . . . . . . . . . 5 . . Robot Analysis 3 | . 1 . . . . 2 . . . . . . . Prototype ID Bank 3 | . . . . . . . . . . . 3 . . Open Door 1 | . . 1 . . . . . . . . . . . Branch Access Points 1 | . . . . . . . . 1 . . . . . Alert Level 6 | . 1 . . . . 2 1 2 . . . . . Unreport Threat 3 | . . . 2 . . . . 1 . . . . . Hauler Manifests 2 | . . . 1 . . . 1 . . . . . . EX-Prototype ID Bank 1 | . . . . . 1 . . . . . . . . Fabricator Hacks 3 | . . . . . . . . 3 . . . . . Network Status 1 | . . . . . . . . 1 . . . . . Load Schematic 2 | . . . . . . . . 2 . . . . . Repair Station Hacks 8 | . 6 . . . . . . 2 . . . . . Scan Component 4 | . 3 . . . . . . 1 . . . . . Repair 4 | . 3 . . . . . . 1 . . . . . Recycling Unit Hacks 3 | . 1 . . . . . . . . . . . 2 Retrieve Components 3 | . 1 . . . . . . . . . . . 2 Scanalyzer 10 | . . . 7 . . . . . . . . . 3 Insert Component 6 | . . . 4 . . . . . . . . . 2 Analyze 4 | . . . 3 . . . . . . . . . 1 Garrison Access Hacks 2 | . . . . . . . 1 . . . . . 1 Seal Access 2 | . . . . . . . 1 . . . . . 1 Unauthorized Hacks 7 | . 1 . 1 . . . 2 3 . . . . . Terminals 4 | . 1 . 1 . . . 2 . . . . . . Botnet 1 | . . . . . . . 1 . . . . . . Operators 3 | . 1 . 1 . . . 1 . . . . . . Fabricators 3 | . . . . . . . . 3 . . . . . Recompile 3 | . . . . . . . . 3 . . . . . Repair Stations . | . . . . . . . . . . . . . . Recycling Units . | . . . . . . . . . . . . . . Scanalyzers . | . . . . . . . . . . . . . . Garrison Access . | . . . . . . . . . . . . . . Data Cores Recovered . | . . . . . . . . . . . . . . Used . | . . . . . . . . . . . . . . Hacking Detections 20 | . 5 . 6 . . 2 2 3 . . . . 2 Full Trace Events . | . . . . . . . . . . . . . . Feedback Events . | . . . . . . . . . . . . . . Feedback Blocked . | . . . . . . . . . . . . . . Robot Schematics Acquired 5 | . . . . . . . . . . . 5 . . Robots Built . | . . . . . . . . . . . . . . Authchips . | . . . . . . . . . . . . . . Time . | . . . . . . . . . . . . . . Total Robot Build Rating . | . . . . . . . . . . . . . . Part Schematics Acquired 16 | . . . 2 . . 1 . . . . 12 . 1 Parts Built . | . . . . . . . . . . . . . . Authchips . | . . . . . . . . . . . . . . Time . | . . . . . . . . . . . . . . Total Part Build Rating . | . . . . . . . . . . . . . . Parts Repaired 4 | . 3 . . . . . . 1 . . . . . Time 129 | . 78 . . . . . . 51 . . . . . Parts Recycled . | . . . . . . . . . . . . . . Recycled Matter . | . . . . . . . . . . . . . . Retrieved Matter . | . . . . . . . . . . . . . . Retrieved Components 7 | . 5 . . . . . . . . . . . 2 Parts Scanalyzed 3 | . . . 2 . . . . . . . . . 1 Part Schematics Acquired 3 | . . . 2 . . . . . . . . . 1 Parts Damaged . | . . . . . . . . . . . . . . Bothacking | -11 -10 -10 -9 -9 -9 -8 -8 -7 -7 -7 -7 -6 -6 ------------ Run | Scr Mat Min Mat Min Exi Min Mat Fac Low Low Dat Pro Fac Used RIF Installer . | . . . . . . . . . . . . . . Robots Hacked . | . . . . . . . . . . . . . . Non-combat . | . . . . . . . . . . . . . . Combat . | . . . . . . . . . . . . . . Robot Hacks Applied . | . . . . . . . . . . . . . . Relay Couplers Released . | . . . . . . . . . . . . . . Fabnet Peak Effective % . | . . . . . . . . . . . . . . Robots Rewired . | . . . . . . . . . . . . . . Allies Hacked . | . . . . . . . . . . . . . . Hacks Repelled . | . . . . . . . . . . . . . . Allies | -11 -10 -10 -9 -9 -9 -8 -8 -7 -7 -7 -7 -6 -6 -------- Run | Scr Mat Min Mat Min Exi Min Mat Fac Low Low Dat Pro Fac Total Allies . | . . . . . . . . . . . . . . Largest Group . | . . . . . . . . . . . . . . Highest-Rated Group . | . . . . . . . . . . . . . . Highest-Rated Ally . | . . . . . . . . . . . . . . Total Orders . | . . . . . . . . . . . . . . Ally Attacks . | . . . . . . . . . . . . . . Total Damage . | . . . . . . . . . . . . . . Kills . | . . . . . . . . . . . . . . Allies Corrupted . | . . . . . . . . . . . . . . Allies Melted . | . . . . . . . . . . . . . . Intel | -11 -10 -10 -9 -9 -9 -8 -8 -7 -7 -7 -7 -6 -6 ------- Run | Scr Mat Min Mat Min Exi Min Mat Fac Low Low Dat Pro Fac Robot Analysis Total 3 | . 1 . . . . 2 . . . . . . . Derelict Logs Recovered 7 | . . 1 . . . . . . 2 1 . 3 . Drone Launches . | . . . . . . . . . . . . . . Drone Recoveries . | . . . . . . . . . . . . . . Exploration | -11 -10 -10 -9 -9 -9 -8 -8 -7 -7 -7 -7 -6 -6 ------------- Run | Scr Mat Min Mat Min Exi Min Mat Fac Low Low Dat Pro Fac Turns Passed 7205 | 74 835 787 1705 296 436 396 1685 362 122 82 30 181 214 Spaces Moved 5493 | 41 360 427 794 140 255 204 857 737 415 272 96 383 512 Core 5 | 5 . . . . . . . . . . . . . Treads 3073 | 36 360 427 794 140 255 204 857 . . . . . . Legs . | . . . . . . . . . . . . . . Wheels . | . . . . . . . . . . . . . . Hover . | . . . . . . . . . . . . . . Flight 2415 | . . . . . . . . 737 415 272 96 383 512 Fastest Speed 28 | 50 160 160 160 170 170 170 162 28 28 28 28 31 34 Average Speed 106 | 146 160 160 169 170 170 170 164 28 28 28 28 33 37 Slowest Speed 250 | 160 160 160 250 170 170 170 170 101 28 28 31 34 107 Overloaded Moves . | . . . . . . . . . . . . . . Propulsion Burnouts . | . . . . . . . . . . . . . . Robots Hopped 12 | . . . . . . . . 5 . 1 3 . 3 Cave-ins Triggered . | . . . . . . . . . . . . . . Exploration Rate (%) 46 | 4 70 58 58 35 61 43 48 20 52 59 80 50 15 Regions Visited 13 Branch Regions 8 Pre-discovered Areas 4 | . . 2 . . 1 . . . . . 1 . . Known Exits Taken 2 | . . . . . . . . 1 1 . . . . Unknown Exits Taken 11 | 1 1 1 1 1 1 1 1 . . 1 1 1 . Scrap Searched 11 | . . 1 . 1 . . . . 3 2 . 4 . Spaces Dug 23 | . . . . . . . . 9 . 2 . 8 4 Terrain Destroyed 86 | . . 21 10 . . 6 . 9 . 2 . 34 4 Melee 23 | . . . . . . . . 9 . 2 . 8 4 Projectile . | . . . . . . . . . . . . . . AOE 63 | . . 21 10 . . 6 . . . . . 26 . Terrain Rammed . | . . . . . . . . . . . . . . Walls Destroyed . | . . . . . . . . . . . . . . Machines Disabled . | . . . . . . . . . . . . . . Actions | -11 -10 -10 -9 -9 -9 -8 -8 -7 -7 -7 -7 -6 -6 --------- Run | Scr Mat Min Mat Min Exi Min Mat Fac Low Low Dat Pro Fac Total 6318 | 52 538 490 1005 168 259 226 1005 869 418 272 93 404 519 Wait 244 | . 97 1 48 11 . 4 25 55 3 . . . . Move 5456 | 40 359 426 793 139 254 203 856 726 414 269 89 382 506 Hop 12 | . . . . . . . . 5 . 1 3 . 3 Pick Up 62 | 6 12 11 18 1 2 1 4 5 . . . 1 1 Fast Attach 46 | 6 6 1 8 . . . 18 5 . . . 1 1 Attach 16 | . . 1 1 . 1 . 2 9 . . . 1 1 Detach 4 | . . . 2 . . . . 2 . . . . . Swap 30 | . 1 6 12 . . 2 8 1 . . . . . Drop 90 | . 10 12 31 1 2 1 19 13 . . . 1 . Fire 273 | . 52 30 87 16 . 15 71 . . . . 2 . Melee 39 | . . . . . . . . 12 1 2 1 16 7 Ram . | . . . . . . . . . . . . . . Kick . | . . . . . . . . . . . . . . Crush 10 | . 1 2 5 . . . 2 . . . . . . Escape Stasis 36 | . . . . . . . . 36 . . . . . Rewire . | . . . . . . . . . . . . . . Trap . | . . . . . . . . . . . . . . Miscellaneous . | . . . . . . . . . . . . . . Route ------- -11/Scrapyard -10/Materials (discovered 3 exits: *Mat / *Min x2) -10/Mines -9/Materials (discovered 3 exits: *Mat x2 / [*Min]) -9/Mines (discovered 2 exits: *Mat / *Exi) -9/Exiles -8/Mines -8/Materials -7/Factory (discovered 3 exits: Sto / *Low x2) -7/Lower Caves -7/Lower Caves (discovered 2 exits: *Fac / *Dat) -7/Data Miner -6/Proximity Caves -6/Factory (discovered 4 exits: Fac x3 / *Low) History --------- Turn | Location | Event 48 | -11/Scrapyard | Discovered new exit (range 15) 75 | -11/Scrapyard | Entered Materials 235 | -10/Materials | Discovered new exit (range 8) 307 | -10/Materials | Build established: Mutant 575 | -10/Materials | Discovered new exit (range 13) 726 | -10/Materials | Repaired Lgt. Armor Plating 753 | -10/Materials | Repaired Lgt. Treads 781 | -10/Materials | Repaired Ion Engine 862 | -10/Materials | Discovered new exit (range 11) 883 | -10/Materials | Central database locked down 910 | -10/Materials | Entered Mines 911 | -10/Mines | Learned location of Storage (-7) 934 | -10/Mines | Met a Derelict bent on vengeance 1489 | -10/Mines | Received a Rocket Launcher from a helpful Derelict 1565 | -10/Mines | Found the Drone Emporium 1582 | -10/Mines | Found Prototype Device 1631 | -10/Mines | Core integrity fell below 50% 1681 | -10/Mines | Discovered new exit (range 11) 1697 | -10/Mines | Entered Materials 1697 | -9/Materials | Evolved 2 slots: Propulsion x1, Utility x1 2229 | -9/Materials | Identified Decoy Drone Bay 2890 | -9/Materials | Discovered new exit (range 9) 2935 | -9/Materials | Discovered new exit (range 16) 3123 | -9/Materials | Discovered new exit (range 5) 3402 | -9/Materials | Entered Mines 3520 | -9/Mines | Discovered new exit (range 11) 3691 | -9/Mines | Deemed a non-threat by the Exiles lab entrance 3691 | -9/Mines | Discovered new exit (range 5) 3698 | -9/Mines | Entered Exiles 3739 | -9/Exiles | Met 8R-AWN 3768 | -9/Exiles | Met EX-HEX 3823 | -9/Exiles | Met EX-BIN 3843 | -9/Exiles | Met EX-DEC 3850 | -9/Exiles | Learned location of Zion (-6) 3901 | -9/Exiles | Aligned with FarCom system 3902 | -9/Exiles | Given EX-Vault access code 3942 | -9/Exiles | Opened EX-Vault 3956 | -9/Exiles | Found Superbattery 3960 | -9/Exiles | Found Trap Reconfigurator 4000 | -9/Exiles | Warned to stay clear of 0b10 Research branches 4110 | -9/Exiles | Discovered new exit (range 11) 4134 | -9/Exiles | Stole two prototypes: Superbattery, Trap Reconfigurator 4134 | -9/Exiles | Entered Mines 4511 | -8/Mines | Discovered new exit (range 11) 4530 | -8/Mines | Entered Materials 4530 | -8/Materials | Evolved 2 slots: Propulsion x1, Utility x1 5360 | -8/Materials | Discovered new exit (range 13) 5538 | -8/Materials | Build established: Scavenger-Mutant 5869 | -8/Materials | Build established: Scavenger-Skirmisher 6215 | -8/Materials | Entered Factory 6215 | -7/Factory | Evolved 2 slots: Propulsion x1, Utility x1 6217 | -7/Factory | FarCom data flow suspended 6510 | -7/Factory | Repaired Imp. Flight Unit 6544 | -7/Factory | Identified exit to Storage 6544 | -7/Factory | Identified exit to Lower Caves 6577 | -7/Factory | Entered Lower Caves 6577 | -7/Lower Caves | Spotted 0R-ID9(f) 6578 | -7/Lower Caves | Encountered a Master Thief 6581 | -7/Lower Caves | Spotted 6H-589(f) 6582 | -7/Lower Caves | Encountered a Master Thief 6591 | -7/Lower Caves | Encountered a Warlord checkpoint 6591 | -7/Lower Caves | Identified exit to Lower Caves 6699 | -7/Lower Caves | Entered another Lower Caves area 6699 | -7/Lower Caves | Discovered new exit (range 9) 6706 | -7/Lower Caves | Learned Factory interactive machine intel 6734 | -7/Lower Caves | Encountered a Warlord checkpoint 6777 | -7/Lower Caves | Spotted N0-ZA8(f) 6778 | -7/Lower Caves | Spotted PN-955(f) 6779 | -7/Lower Caves | Encountered a Master Thief 6779 | -7/Lower Caves | Encountered a Master Thief 6779 | -7/Lower Caves | Discovered new exit (range 8) 6779 | -7/Lower Caves | Spotted QI-5DM(f) 6780 | -7/Lower Caves | Encountered a Master Thief 6781 | -7/Lower Caves | Entered Data Miner 6781 | -7/Data Miner | Discovered new exit (range 6) 6786 | -7/Data Miner | Met Data Miner 6792 | -7/Data Miner | Learned location of Section 7 (-2) 6792 | -7/Data Miner | Acquired the access code to Warlord's prototype stash 6797 | -7/Data Miner | Received God Mode back door access code from Data Miner 6804 | -7/Data Miner | Build established: Hacker-Sprinter 6811 | -7/Data Miner | Entered Proximity Caves 6853 | -6/Proximity Caves | Learned 8 Factory zone layouts 6857 | -6/Proximity Caves | Lost 5 parts (1p2n1u1w) 6909 | -6/Proximity Caves | Spotted B-75 Beast 6942 | -6/Proximity Caves | Learned location of 1 exit from Factory 6959 | -6/Proximity Caves | Learned Factory terminal intel 6987 | -6/Proximity Caves | Discovered new exit (range 13) 6992 | -6/Proximity Caves | Entered Factory 6992 | -6/Factory | Evolved 2 slots: Propulsion x1, Utility x1 6993 | -6/Factory | Identified exit to Lower Caves 6994 | -6/Factory | Identified exit to Factory 6996 | -6/Factory | Loaded intel: 52 interactive machine locations 6997 | -6/Factory | Loaded intel: 26 terminal locations 7111 | -6/Factory | Build established: Hacker-Mutant 7206 | -6/Factory | Self-destructed Last Messages --------------- 07154_ Acquired Imp. Hacking Suite. 07161_ Connecting with Scanalyzer... >>Insert(Imp. Hacking Suite) Scanning Imp. Hacking Suite... Ready to analyze. >>Scanalyze Scanning: Imp. Hacking Suite... Schematic downloaded. >>Insert(Lrg. Storage Unit) Scanning Lrg. Storage Unit... Ready to analyze. 07171_ K-01 Serf cleans the Fabricator. 07172_ Destroyed Imp. Hover Unit. 07176_ Triggered Proton Bomb Trap. 07176_ A bubble of electromagnetic force engulfs the area. 07176_ Datajack destroyed. 07176_ Imp. Flight Unit destroyed. 07176_ Fabricator disabled. 07176_ K-01 Serf destroyed. 07203_ W-25 Informer sends out distress signal. Map ----- +----------------------------------------------------+ | # """"""""" #### ################ | | # #### #### ### | | # """"""""" #?## #### ### | | # #?## + """ """ ### | | # """"""""" #?## ###### ## """ """ ###### | | ???????????????##+##+###### ## """ """ # | | ??????????????? ?? + ## # | | ????????????????????"" ###### ## ! + """ | | ???????????????????""" ###### ## # """ | | ???????????????????""" ?????## ############ """ | | ??????????????????? ?????## """ | | ?????????????????" """ ??????## """ | | ?????????????????" """ ??????## """ | | ?????????????????"?""" ???????########## | | ???????????????????? ????????########## | | ??????????????????? ????????????????## | | ???????????????????? ?????????????????## | | ?????????????????? ##????######## | | ??????????????????######################+## | | ?????????????????? ######## ] # | | ???????????? # ? """""" # ## #^ % | | ???????????? # """""" # ## # " | | ???????????? # """""" # """ ## # "" | | ???????????? # """""" # """ ###"####### " | | ???????????? # # """ # " " | | ???????????? + w !@/ + "" | | ???????????? # ! # !! # | | ???????????? + # !! # | | ????????????## # ! ############# | | ????????????## # ############# | | ????????????## Y # ## """ """ ## | | ????????????##### ######### ## """ """ # | | ????????????###################### """ """ # | | ???????????????###???????######### + | | ????????????????????????????????## # ## | | ????????????????????????????????## # ## | | ???????T????????????????????????## # ## | | ????????????????????????????????## # ## | | ????????????????????????????????###+######## ## | | ????????????????????????????????### ######## ## | | ??????????????????????????????????????????## ## | | ??????????????????????????????????????????## ## | | ??????????????????????????????????????????## ## | | ??????????????????????????????????????????## ## | | ??????????????????????????????????????????## ## | | ??????????????????????????????????????????## ## | | ??????????????????????????????????????????# | | ??????????????????????????????????????????? ? | | ??????????????????????????????????????????? ? | | ??????????????????????????????????????"""?? """"? | +----------------------------------------------------+ Best States ------------- Heat Dissipation 53 Energy Generation 14 Energy Capacity 265 Matter Stores 300 Matter Capacity 300 Sight Range 20 Terrain Scan Density 10 Armor Coverage 300 Resistance: KI 20 Evasion (%) 64 Recoil Reduction 4 Salvage Targeting 1 Offensive Hacking 20 Authchip Count 3 Item Schematics ----------------- Imp. Flight Unit | -9/Materials | Scanalyzed Lgt. Nuclear Core | -9/Materials | Scanalyzed Structural Scanner | -8/Mines | Hacked Combat Drone Bay | -7/Data Miner | Free Lgt. Regenerative Plating | -7/Data Miner | Free Cld. Aerolev Unit | -7/Data Miner | Free Exp. Targeting Computer | -7/Data Miner | Free Imp. Heavy Machine Gun | -7/Data Miner | Free Antigrav System | -7/Data Miner | Free Recoil Nullifier | -7/Data Miner | Free Disruptor Cannon | -7/Data Miner | Free Lrn. Proton Cannon | -7/Data Miner | Free Gyrokinetic Inverter | -7/Data Miner | Free Imp. Fusion Compressor | -7/Data Miner | Free Imp. Core Shielding | -7/Data Miner | Free Imp. Hacking Suite | -6/Factory | Scanalyzed Robot Schematics ------------------ B-48 Gladiator | -7/Data Miner | Free A-15 Conveyor | -7/Data Miner | Free G-50 Soldier | -7/Data Miner | Free E-15 Imp | -7/Data Miner | Free R-10 Processor | -7/Data Miner | Free Fabricated ------------ Nothing Alien Tech Used ----------------- None Achievements -------------- None Challenges ------------ None Game ------ Seed WeaponIonMapper Manual? 0 Play Time 00:48:18 Cumulative 403.7 hours Start 2022.05.07 @ 18:14:20 End 2022.05.08 @ 10:50:18 Sessions 8 Manual Loads 0 Difficulty Rogue Special Mode None Game No. 397 Rogue 397 Adventurer 0 Explorer 0 Win Type - Total 20 Types 12/2/3/2/0/0/0/1/0 Lore% 92 Gallery% 90 Achievement% 76 Wizard Run 0 Options --------- ASCII 0 Keyboard 0 Movement Arrows Keybinds 0 Fullscreen 1 Font 18/Smallcaps Map View 76x50 Tactical HUD 1 Map Filters NONE Filters NONE Steam 1 RUN: 2e3931db-fd1a-47f0-8aa0-d113724186a7